{"text_format":"3","workbook":"xlsx","n_sheets":6,"sheets":["СРОК ","КРЕДИТИ","БЮДЖЕТ","ЧИСТИ МЕСЕЧНИ РАЗХОДИ","РАЗХОДИ ЗА СЕМЕСТЪРА","КНИГИ"],"not_rendered":{"defined_names":21},"read":"whole","date_system":"1900"}

{"sheet":"СРОК ","index":0,"n_rows":29,"n_cols":9,"rows_kept":29,"merged":[[2,3,2,4]]}
[null,"ГРАФИК НА МОЯ КЛАС"]
[null,"ЕСЕНЕН СЕМЕСТЪР"]
[null,null,"НАЧАЛЕН ЧАС","ИНТЕРВАЛ ОТ ВРЕМЕ",null,"ГОДИНА"]
[null,null,"09:00:00",60,"(в минути)"]
[null,"ЧАС ","ПОН","ВТО","СРЯ","ЧЕТ","ПЕТ","СЪБ","НЕД"]
[null,{"$f":"НачаленЧас+TIME(0,(ROW(A1)-1)*ИнтервалВреме,0)","v":"09:00:00"},"Закуска","Закуска","Закуска","Закуска","Закуска"]
[null,"10:00:00","Бизнес: Лекция сгр. Б, ст. 256"]
[null,"11:00:00",{"$nulls":3},"Физика: Лаборатория \nСгр. Ж, ст. 309"]
[null,"12:00:00"]
[null,"13:00:00"]
[null,"14:00:00"]
[null,"15:00:00"]
[null,"16:00:00"]
[null,"17:00:00"]
[null,"18:00:00"]
[null,"19:00:00"]
[null,"20:00:00"]
[null,"21:00:00"]
[null,"22:00:00"]
[null,"23:00:00"]
[null,1]
[null,1.0416666666666665]
[null,1.0833333333333335]
[null,1.125]
[null,1.1666666666666665]
[null,1.2083333333333335]
[null,1.25]
[null,1.2916666666666665]
[null,1.3333333333333335]

{"sheet":"КРЕДИТИ","index":1,"n_rows":17,"n_cols":8,"rows_kept":17}
[null,"ПЛАНИРОВЧИК НА КРЕДИТИТЕ"]
[null,"В УНИВЕРСИТЕТА"]
[null,"Степен",{"$f":"Година","v":"ГОДИНА"}]
[null,"ЦЯЛОСТЕН НАПРЕДЪК",null,"ЦЯЛОСТЕН НАПРЕДЪК"]
[null,{"$f":"AVERAGE(Курсове[ОЦЕНКА])","v":3.5},{"$f":"IFERROR(TEXT(AVERAGEIF(Курсове[ЗАВЪРШЕНИ],\"Да\",Курсове[ОЦЕНКА]),\"0.00\"),\"0.00\")&\" Текущ общ успех\"","v":"0.00 Текущ общ успех"},{"$f":"COUNTIF(Курсове[ЗАВЪРШЕНИ],\"Да\")/COUNTA(Курсове[ИМЕ НА КУРСА])","v":0.6666666666666666},{"$f":"TEXT(COUNTIF(Курсове[ЗАВЪРШЕНИ],\"Да\")/COUNTA(Курсове[ИМЕ НА КУРСА]),\"0%\")&\" изпълнени\"","v":"67% изпълнени"}]
[null,"Забележка: Следното резюме на кредитите се попълва автоматично от вашите записи в таблицата за курсовете в учебното заведение по-долу"]
[null,"ИЗИСКВАНЕ","ОБЩО КРЕДИТИ","СПЕЧЕЛЕНИ","НЕОБХОДИМИ"]
[null,"Основни дисциплини",{"$f":"IF(SUMIF(Курсове[ИЗИСКВАНЕ],КРЕДИТИ!$B8,Курсове[КРЕДИТИ])=0,\"0\",SUMIF(Курсове[ИЗИСКВАНЕ],КРЕДИТИ!$B8,Курсове[КРЕДИТИ]))","v":4},{"$f":"SUMIFS(Курсове[КРЕДИТИ],Курсове[ИЗИСКВАНЕ],КРЕДИТИ!$B8,Курсове[ЗАВЪРШЕНИ],\"Да\")","v":4},{"$f":"SUMIF(Курсове[ИЗИСКВАНЕ],КРЕДИТИ!$B8,Курсове[КРЕДИТИ])-SUMIFS(Курсове[КРЕДИТИ],Курсове[ИЗИСКВАНЕ],КРЕДИТИ!$B8,Курсове[ЗАВЪРШЕНИ],\"Да\")","v":0}]
[null,"Допълнителни дисциплини",{"$f":"IF(SUMIF(Курсове[ИЗИСКВАНЕ],КРЕДИТИ!$B9,Курсове[КРЕДИТИ])=0,\"0\",SUMIF(Курсове[ИЗИСКВАНЕ],КРЕДИТИ!$B9,Курсове[КРЕДИТИ]))","v":3},{"$f":"SUMIFS(Курсове[КРЕДИТИ],Курсове[ИЗИСКВАНЕ],КРЕДИТИ!$B9,Курсове[ЗАВЪРШЕНИ],\"Да\")","v":0},{"$f":"SUMIF(Курсове[ИЗИСКВАНЕ],КРЕДИТИ!$B9,Курсове[КРЕДИТИ])-SUMIFS(Курсове[КРЕДИТИ],Курсове[ИЗИСКВАНЕ],КРЕДИТИ!$B9,Курсове[ЗАВЪРШЕНИ],\"Да\")","v":3}]
[null,"Избираем курс",{"$f":"IF(SUMIF(Курсове[ИЗИСКВАНЕ],КРЕДИТИ!$B10,Курсове[КРЕДИТИ])=0,\"0\",SUMIF(Курсове[ИЗИСКВАНЕ],КРЕДИТИ!$B10,Курсове[КРЕДИТИ]))","v":2},{"$f":"SUMIFS(Курсове[КРЕДИТИ],Курсове[ИЗИСКВАНЕ],КРЕДИТИ!$B10,Курсове[ЗАВЪРШЕНИ],\"Да\")","v":2},{"$f":"SUMIF(Курсове[ИЗИСКВАНЕ],КРЕДИТИ!$B10,Курсове[КРЕДИТИ])-SUMIFS(Курсове[КРЕДИТИ],Курсове[ИЗИСКВАНЕ],КРЕДИТИ!$B10,Курсове[ЗАВЪРШЕНИ],\"Да\")","v":0}]
[null,"Общообразователни дисциплини",{"$f":"IF(SUMIF(Курсове[ИЗИСКВАНЕ],КРЕДИТИ!$B11,Курсове[КРЕДИТИ])=0,\"0\",SUMIF(Курсове[ИЗИСКВАНЕ],КРЕДИТИ!$B11,Курсове[КРЕДИТИ]))","v":"0"},{"$f":"SUMIFS(Курсове[КРЕДИТИ],Курсове[ИЗИСКВАНЕ],КРЕДИТИ!$B11,Курсове[ЗАВЪРШЕНИ],\"Да\")","v":0},{"$f":"SUMIF(Курсове[ИЗИСКВАНЕ],КРЕДИТИ!$B11,Курсове[КРЕДИТИ])-SUMIFS(Курсове[КРЕДИТИ],Курсове[ИЗИСКВАНЕ],КРЕДИТИ!$B11,Курсове[ЗАВЪРШЕНИ],\"Да\")","v":0}]
[null,"Общо",{"$f":"SUBTOTAL(109,КРЕДИТИ!$C$8:$C$11)","v":9},{"$f":"SUBTOTAL(109,КРЕДИТИ!$D$8:$D$11)","v":6},{"$f":"SUBTOTAL(109,КРЕДИТИ!$E$8:$E$11)","v":3}]
[null,"Курсове"]
[null,"ИМЕ НА КУРСА","КУРС №","ИЗИСКВАНЕ","КРЕДИТИ","ЗАВЪРШЕНИ","ОЦЕНКА","СЕМЕСТЪР"]
[null,"Курс 1","Номер","Основни дисциплини",4,"Да",{"v":4,"d":"4.0"},"Семестър 1"]
[null,"Курс 2","Номер","Допълнителни дисциплини",3,"Не",null,"Семестър 1"]
[null,"Курс 3","Номер","Избираем курс",2,"Да",{"v":3,"d":"3.0"},"Семестър 1"]

{"sheet":"БЮДЖЕТ","index":2,"n_rows":15,"n_cols":4,"rows_kept":15}
[null,{"$f":"ПланировчикНаКредитите","v":"ПЛАНИРОВЧИК НА КРЕДИТИТЕ"}]
[null,"ПРОСЛЕДЯВАНЕ НА БЮДЖЕТА"]
[null,"Моят бюджет",{"$f":"Година","v":"ГОДИНА"}]
[null,"ИЗХАРЧЕН ПРОЦЕНТ ОТ ДОХОДА"]
[null,{"$f":"ЧИСТИ_МЕСЕЧНИ_РАЗХОДИ/ЧИСТ_МЕСЕЧЕН_ДОХОД","v":{"v":0.7454545454545455,"d":"75%"}}]
[null,{"$f":"B5","v":0.7454545454545455}]
[null,"ЧИСТ МЕСЕЧЕН ДОХОД","ЧИСТИ МЕСЕЧНИ РАЗХОДИ","БАЛАНС"]
[null,{"$f":"C10","v":{"v":2750,"d":"2,750 лв."}},{"$f":"'ЧИСТИ МЕСЕЧНИ РАЗХОДИ'!C4+'РАЗХОДИ ЗА СЕМЕСТЪРА'!D4","v":{"v":2050,"d":"2,050 лв."}},{"$f":"ЧИСТ_МЕСЕЧЕН_ДОХОД-ЧИСТИ_МЕСЕЧНИ_РАЗХОДИ","v":{"v":700,"d":"700 лв."}}]
[null,"Месеци в семестъра",4]
[null,"МЕСЕЧЕН ДОХОД",{"$f":"SUM(МЕСЕЧЕНДОХОД[СУМА])","v":{"v":2750,"d":"2,750 лв."}}]
[null,"ПЕРО","СУМА"]
[null,"Фиксиран доход",{"v":1500,"d":"1,500 лв."}]
[null,"Финансова помощ",{"v":500,"d":"500 лв."}]
[null,"Заеми",{"v":500,"d":"500 лв."}]
[null,"Други доходи",{"v":250,"d":"250 лв."}]

{"sheet":"ЧИСТИ МЕСЕЧНИ РАЗХОДИ","index":3,"n_rows":15,"n_cols":3,"rows_kept":15}
[null,{"$f":"ПланировчикНаКредитите","v":"ПЛАНИРОВЧИК НА КРЕДИТИТЕ"}]
[null,"ПРОСЛЕДЯВАНЕ НА БЮДЖЕТА"]
[null,"Месечни разходи",{"$f":"Година","v":"ГОДИНА"}]
[null,"МЕСЕЧНИ РАЗХОДИ",{"$f":"SUM(Месечниразходи[СУМА])","v":{"v":1675,"d":"1,675 лв."}}]
[null,"ПЕРО","СУМА"]
[null,"Наем",{"v":300,"d":"300 лв."}]
[null,"Комунални услуги",{"v":50,"d":"50 лв."}]
[null,"Мобилен телефон",{"v":75,"d":"75 лв."}]
[null,"Хранителни стоки",{"v":250,"d":"250 лв."}]
[null,"Разходи за автомобил",{"v":50,"d":"50 лв."}]
[null,"Студентски заеми",{"v":500,"d":"500 лв."}]
[null,"Кредитни карти",{"v":275,"d":"275 лв."}]
[null,"Застраховка",{"v":125,"d":"125 лв."}]
[null,"Развлечения",{"v":50,"d":"50 лв."}]
[null,"Разни",{"v":0,"d":"0 лв."}]

{"sheet":"РАЗХОДИ ЗА СЕМЕСТЪРА","index":4,"n_rows":11,"n_cols":4,"rows_kept":11}
[null,{"$f":"ПланировчикНаКредитите","v":"ПЛАНИРОВЧИК НА КРЕДИТИТЕ"}]
[null,"ПРОСЛЕДЯВАНЕ НА БЮДЖЕТА"]
[null,"Разходи за семестъра",{"$f":"Година","v":"ГОДИНА"}]
[null,"РАЗХОДИ ЗА СЕМЕСТЪРА (общо/на месец)",{"$f":"SUM(РазходиСеместър[СУМА])","v":{"v":1500,"d":"1,500 лв."}},{"$f":"SUM(РазходиСеместър[НА МЕСЕЦ])","v":{"v":375,"d":"375 лв."}}]
[null,"ПЕРО","СУМА","НА МЕСЕЦ"]
[null,"Обучение",{"v":750,"d":"750 лв."},{"$f":"РазходиСеместър[[#This Row],[СУМА]]/Месеци_в_семестъра","v":{"v":187.5,"d":"188 лв."}}]
[null,"Такси за лаборатория",{"v":250,"d":"250 лв."},{"$f":"РазходиСеместър[[#This Row],[СУМА]]/Месеци_в_семестъра","v":{"v":62.5,"d":"63 лв."}}]
[null,"Книги",{"v":500,"d":"500 лв."},{"$f":"РазходиСеместър[[#This Row],[СУМА]]/Месеци_в_семестъра","v":{"v":125,"d":"125 лв."}}]
[null,"Депозити",{"v":0,"d":"0 лв."},{"$f":"РазходиСеместър[[#This Row],[СУМА]]/Месеци_в_семестъра","v":{"v":0,"d":"0 лв."}}]
[null,"Транспорт",{"v":0,"d":"0 лв."},{"$f":"РазходиСеместър[[#This Row],[СУМА]]/Месеци_в_семестъра","v":{"v":0,"d":"0 лв."}}]
[null,"Други такси",{"v":0,"d":"0 лв."},{"$f":"РазходиСеместър[[#This Row],[СУМА]]/Месеци_в_семестъра","v":{"v":0,"d":"0 лв."}}]

{"sheet":"КНИГИ","index":5,"n_rows":7,"n_cols":7,"rows_kept":7}
[null,{"$f":"ПланировчикНаКредитите","v":"ПЛАНИРОВЧИК НА КРЕДИТИТЕ"}]
[null,"ПРОСЛЕДЯВАНЕ НА КНИГИТЕ"]
[null,"Списък на книги"]
[null,"ЗАГЛАВИЕ","АВТОР","КУРС","ОТКЪДЕ ДА СЕ КУПИ?","ISBN","БЕЛЕЖКИ"]
[null,"Заглавие на книгата","Автор","Курс","Място","Номер"]
[null,"Заглавие на книгата","Автор","Курс","Място","Номер"]
[null,"Заглавие на книгата","Автор","Курс","Място","Номер"]